bitfinex-derivatives/quotes_SOLF0:USTF0_20250530
["timestamp","ask_amount","ask_price","bid_price","bid_amount"]
[1748595064387,0.04087596,163.74,163.73,6.1052]
[1748595065192,0.04087596,163.74,163.72,6.1054]
[1748595065895,0.04087596,163.74,163.73,6.1052]
[1748595066087,0.04087596,163.74,163.71,31.84477292]
[1748595066499,0.04087596,163.74,163.73,6.1052]
[1748595066699,4.082,163.84,163.72,6.70608807]
[1748595066891,4.082,163.84,163.75,6.70608807]
[1748595067090,31.8,163.85,163.78,6.1033]
[1748595067291,31.8,163.85,163.76,33.91]
[1748595067590,6.1019,163.82,163.79,6.1027]
[1748595067787,6.14188158,163.82,163.79,6.14826068]
[1748595068592,0.03998158,163.82,163.79,0.04556068]
[1748595068795,0.03998158,163.82,163.8,31.8]
[1748595069098,31.8,163.88,163.8,31.8]
[1748595069396,567.91158807,163.91,163.8,31.8]
[1748595069592,6.0997,163.88,163.81,6.70608807]
[1748595069992,33.7855,163.91,163.8,93.8]
[1748595070194,33.7855,163.91,163.8,37.9025]
[1748595070195,6.1017,163.83,163.8,37.9025]
[1748595070399,40.49158807,163.91,163.8,31.83929029]
[1748595070596,6.1007,163.85,163.84,0.04111969]
[1748595070793,33.7855,163.91,163.84,0.04111969]
[1748595071196,6.1003,163.87,163.84,0.04111969]
[1748595071599,33.7855,163.91,163.84,0.04111969]
[1748595072400,31.8,163.91,163.84,31.80111969]
[1748595073100,6.1007,163.85,163.84,31.80111969]
[1748595073701,6.1007,163.85,163.84,0.04111969]
[1748595074800,6.1005,163.86,163.84,0.04111969]
[1748595075798,6.1,163.87,163.84,0.04111969]
[1748595076692,6.1,163.87,163.84,6.14211969]
[1748595077201,6.1,163.87,163.85,31.74]
[1748595077402,6.0997,163.88,163.85,37.8406]
[1748595077602,6.0997,163.88,163.85,37.88228456]
[1748595077901,6.0993,163.89,163.85,37.88228456]
[1748595078102,35.9129,163.94,163.88,6.0995]
[1748595078296,31.74,163.97,163.89,0.04269798]
[1748595078493,6.0984,163.92,163.91,0.04157348]
[1748595081706,6.0984,163.92,163.91,7.348e-05]
[1748595082006,38.44608807,163.93,163.83,31.74]
[1748595082204,6.0603,163.92,163.83,31.74]
[1748595082398,6.70608807,163.9,163.83,31.74]
[1748595082902,6.1003,163.86,163.85,0.04245201]
[1748595083697,6.102,163.82,163.8,31.74]
[1748595085302,0.03944103,163.83,163.8,31.74]
[1748595085910,6.14104103,163.83,163.8,31.74]
[1748595086711,6.1019,163.82,163.8,31.74]
[1748595087208,0.03944103,163.83,163.8,31.74]
[1748595087806,0.03944103,163.83,163.82,6.1018]
[1748595089213,37.8003,163.92,163.8,31.74]
[1748595089915,6.0998,163.88,163.84,6.1008]
[1748595090112,6.14300786,163.88,163.85,31.74]
[1748595090716,0.04320786,163.88,163.85,31.74]
[1748595092016,6.14290786,163.88,163.85,37.8405]
[1748595092420,0.04320786,163.88,163.85,31.74]
[1748595092615,6.1002,163.87,163.85,31.74]
[1748595093013,0.04320786,163.88,163.85,31.74]
[1748595093510,6.14290786,163.88,163.85,37.8405]
[1748595093913,0.04320786,163.88,163.85,31.74]
[1748595094215,0.04320786,163.88,163.84,0.04435391]
[1748595094721,6.1007,163.85,163.84,0.04435391]
[1748595095216,6.103,163.79,163.78,31.74]
[1748595095612,31.74,163.88,163.78,31.74]
[1748595095820,6.1027,163.8,163.78,31.74]
[1748595096619,6.103,163.79,163.78,31.74]
[1748595100423,6.1027,163.8,163.78,31.74]
[1748595100726,0.04662713,163.81,163.78,31.74]
[1748595102027,6.1029,163.8,163.78,31.74]
[1748595102618,0.04662713,163.81,163.78,31.74]
[1748595103525,6.103,163.79,163.78,31.74]
[1748595104024,6.1027,163.8,163.78,31.74]
[1748595104528,6.1026,163.8,163.78,31.74]
[1748595104723,0.04662713,163.81,163.78,31.74]
[1748595105121,6.1029,163.8,163.78,31.74]
[1748595105627,6.14902713,163.81,163.78,37.8433]
[1748595105931,0.04662713,163.81,163.78,31.74]
[1748595106134,6.103,163.79,163.78,31.74]
[1748595107530,0.04662713,163.81,163.78,31.74]
[1748595107531,6.1027,163.8,163.78,31.74]
[1748595108626,6.14902713,163.81,163.78,37.8433]
[1748595109230,6.1027,163.8,163.78,31.74]
[1748595109430,0.04662713,163.81,163.78,31.74]
[1748595110728,6.103,163.79,163.78,31.74]
[1748595112229,6.1033,163.78,163.77,0.04513091]
[1748595120939,6.1033,163.78,163.77,3.091e-05]
[1748595129533,6.1027,163.8,163.77,3.091e-05]
[1748595129728,0.04662713,163.81,163.77,3.091e-05]
[1748595130337,0.04662713,163.81,163.77,6.10363091]
[1748595130538,6.14892713,163.81,163.77,3.091e-05]
[1748595131540,6.14892713,163.81,163.78,6.1031]
[1748595131736,0.04662713,163.81,163.79,31.72]
[1748595132742,6.14892713,163.81,163.79,37.8229]
[1748595132943,6.14892713,163.81,163.79,31.72]
[1748595134142,6.1026,163.8,163.79,31.72]
[1748595135238,6.14892713,163.81,163.79,31.72]
[1748595135744,0.04662713,163.81,163.79,31.72]
[1748595136041,0.04662713,163.81,163.8,6.1026]
[1748595139541,0.04662713,163.81,163.79,37.8228]
[1748595140338,0.04662713,163.81,163.79,31.72]
[1748595141144,0.04662713,163.81,163.79,37.8227]
[1748595142443,0.04662713,163.81,163.8,6.1026]
[1748595143940,2.0461,163.89,163.83,6.1012]
[1748595144147,2.087,163.93,163.83,31.66]
[1748595144646,2.087,163.93,163.83,35.6929]
[1748595145046,0.04653337,163.9,163.86,0.03897709]
[1748595145237,6.0993,163.89,163.86,0.03897709]
[1748595145441,0.04653337,163.9,163.87,31.66]
[1748595145751,0.04653337,163.9,163.88,6.0994]
[1748595146248,6.0992,163.89,163.87,31.66]
[1748595147043,0.04653337,163.9,163.87,31.66]
[1748595147947,6.14553337,163.9,163.87,37.7597]
[1748595148146,0.04653337,163.9,163.87,31.66]
[1748595148447,6.0996,163.88,163.87,31.66]
[1748595149750,0.04653337,163.9,163.87,31.66]
[1748595149751,6.0993,163.89,163.87,31.66]
[1748595150446,0.04653337,163.9,163.86,0.03897709]
[1748595150840,6.1,163.87,163.86,0.03897709]
[1748595154855,6.0997,163.88,163.86,0.03897709]
[1748595155055,0.04653337,163.9,163.86,0.03897709]
[1748595155254,6.0998,163.88,163.86,0.03897709]
[1748595155451,0.04653337,163.9,163.86,0.03897709]
[1748595156145,6.1,163.87,163.86,0.03897709]
[1748595166563,0.04653337,163.9,163.78,10.0799]
[1748595166564,6.1023,163.81,163.78,10.0799]
[1748595166766,6.1023,163.81,163.79,31.62]
[1748595167369,6.1026,163.8,163.79,31.62]
[1748595168669,6.14639334,163.81,163.79,31.62]
[1748595168968,0.04399334,163.81,163.79,31.62]
[1748595169570,6.1026,163.8,163.79,31.62]
[1748595172772,0.04399334,163.81,163.79,31.62]
[1748595174073,0.04399334,163.81,163.8,6.1026]
[1748595174974,6.1008,163.85,163.79,31.62]
[1748595175172,2.0909,163.88,163.79,31.62]
[1748595175372,6.1005,163.86,163.83,6.1012]
[1748595175671,6.1005,163.86,163.83,37.7212]
[1748595175865,6.14211663,163.86,163.83,37.76263543]
[1748595176061,0.04161663,163.86,163.85,6.1007]
[1748595176266,0.04161663,163.86,163.83,31.66143543]
[1748595177576,0.04161663,163.86,163.83,0.04143543]
[1748595177772,6.1011,163.84,163.83,0.04143543]
[1748595180572,6.1011,163.84,163.83,3.543e-05]
[1748595182376,6.1033,163.78,163.77,31.62]
[1748595183883,0.04559164,163.79,163.77,31.62]
[1748595184277,0.04559164,163.79,163.77,37.7236]
[1748595184985,0.04559164,163.79,163.78,6.1033]
[1748595194696,31.58,163.9,163.82,6.1018]
[1748595195085,6.1011,163.85,163.82,6.1018]
[1748595195291,31.58,163.9,163.81,37.682]
[1748595195691,0.04356123,163.87,163.84,0.04368017]
[1748595196392,6.1007,163.85,163.84,0.04368017]
[1748595200995,6.1005,163.86,163.84,0.04368017]
[1748595201501,0.04356123,163.87,163.84,0.04368017]
[1748595202801,6.1005,163.86,163.84,0.04368017]
[1748595203702,6.1007,163.85,163.84,0.04368017]
[1748595204200,0.04356123,163.87,163.84,0.04368017]
[1748595204498,6.1005,163.86,163.84,0.04368017]
[1748595204698,6.1005,163.86,163.84,6.14468017]
[1748595204906,0.04356123,163.87,163.84,0.04368017]
[1748595205595,6.1007,163.85,163.84,0.04368017]
[1748595208502,6.1007,163.85,163.79,31.58]
[1748595208503,6.1024,163.81,163.79,31.58]
[1748595209700,6.1026,163.8,163.79,31.58]
[1748595209897,0.04154158,163.82,163.78,0.04520332]
[1748595210402,6.1029,163.8,163.78,0.04520332]
[1748595210607,0.04154158,163.82,163.78,0.04520332]
[1748595210810,6.103,163.79,163.78,0.04520332]
[1748595211104,0.04154158,163.82,163.78,0.04520332]
[1748595211701,0.04154158,163.82,163.78,6.74950185]
[1748595212710,0.04154158,163.82,163.81,6.1022]
[1748595213005,0.04154158,163.82,163.81,37.6822]
[1748595221413,0.04154158,163.82,163.81,31.58]
[1748595222117,0.04154158,163.82,163.78,31.62520332]
[1748595223218,6.1023,163.81,163.78,37.72820332]
[1748595223514,6.1023,163.81,163.78,31.62520332]
[1748595224918,6.14354158,163.82,163.79,6.1029]
[1748595225315,0.04154158,163.82,163.78,31.62520332]
[1748595229119,0.04154158,163.82,163.81,6.1022]
[1748595233824,0.04154158,163.82,163.81,37.6222]
[1748595240831,0.04154158,163.82,163.81,31.52]
[1748595241437,6.14334158,163.82,163.81,31.52]
[1748595242541,0.04154158,163.82,163.81,31.52]
[1748595244237,6.14334158,163.82,163.81,31.52]
[1748595245043,0.04154158,163.82,163.78,31.56520332]
[1748595245941,6.1024,163.81,163.78,37.66830332]
[1748595246444,6.1024,163.81,163.79,6.1029]
[1748595246944,6.1024,163.81,163.78,37.66830332]
[1748595247140,0.04154158,163.82,163.78,31.56520332]
[1748595248142,0.04154158,163.82,163.81,6.1022]
[1748595249246,0.04154158,163.82,163.81,37.6422]
[1748595251440,37.474,163.89,163.84,6.1009]
[1748595251842,5.894,163.89,163.83,6.1013]
[1748595252057,5.894,163.89,163.81,31.54]
[1748595252444,6.1009,163.85,163.83,0.03943167]
[1748595254151,6.1011,163.84,163.83,0.03943167]
[1748595254352,0.04223544,163.87,163.83,0.03943167]
[1748595255856,6.1011,163.84,163.83,0.03943167]
[1748595275965,10.39095645,163.84,163.83,0.03943167]
[1748595279074,6.1028,163.8,163.78,31.48]
[1748595279775,6.1029,163.79,163.78,31.48]
[1748595280678,6.1033,163.78,163.77,0.0415085]
[1748595285682,6.1052,163.73,163.72,31.48]
[1748595286081,6.1052,163.73,163.7,6.1063]
[1748595286582,6.1056,163.72,163.7,0.03956123]
[1748595287184,6.14532753,163.73,163.7,6.14576123]
[1748595288080,6.1056,163.72,163.7,0.03956123]
[1748595288678,6.14532753,163.73,163.7,6.14586123]
[1748595290888,0.04002753,163.73,163.7,0.03956123]
[1748595291477,0.04002753,163.73,163.72,6.1055]
[1748595292281,0.04002753,163.73,163.7,0.03956123]
[1748595292688,0.04002753,163.73,163.7,6.14566123]
[1748595292987,0.04002753,163.73,163.7,0.03956123]
[1748595293277,6.1059,163.71,163.7,0.03956123]
[1748595299480,6.14532753,163.73,163.7,6.14556123]
[1748595299687,0.04002753,163.73,163.7,0.03956123]
[1748595300087,0.04002753,163.73,163.7,31.47956123]
[1748595300285,38.1468659,163.79,163.7,31.47956123]
[1748595300286,31.44,163.79,163.7,31.47956123]
[1748595300485,33.5442,163.82,163.7,31.47956123]
[1748595300689,6.1042,163.76,163.73,6.105]
[1748595300891,33.5442,163.82,163.71,2.0912]
[1748595301090,6.7068659,163.8,163.7,31.44]
[1748595301285,0.04425908,163.77,163.73,0.04198811]
[1748595301888,6.1051,163.74,163.73,0.04198811]
[1748595303286,6.75112498,163.77,163.67,35.4569]
[1748595303490,6.75112498,163.77,163.67,33.4391]
[1748595303491,2.0683,163.76,163.67,33.4391]
[1748595303690,4.034,163.76,163.67,31.44]
[1748595303890,6.1069,163.69,163.67,31.44]
[1748595304695,6.14550578,163.7,163.67,37.5473]
[1748595306892,6.1067,163.69,163.67,37.5473]
[1748595307397,6.1067,163.69,163.67,31.44]
[1748595308195,6.1067,163.69,163.67,37.5474]
[1748595308593,6.14550578,163.7,163.67,37.5474]
[1748595309099,6.1067,163.69,163.67,31.44]
[1748595309393,0.03910578,163.7,163.67,31.44]
[1748595309590,6.107,163.68,163.67,31.44]
[1748595310098,0.03910578,163.7,163.66,0.04475139]
[1748595310407,6.1074,163.67,163.66,0.04475139]
[1748595310700,6.1074,163.67,163.6,120.34018518]
[1748595310701,6.7068659,163.68,163.59,31.44]
[1748595311298,6.1088,163.64,163.61,6.1096]
[1748595311495,6.14938131,163.64,163.61,6.15418113]
[1748595312700,0.04058131,163.64,163.61,0.04458113]
[1748595313102,6.1065,163.7,163.61,6.75144703]
[1748595313300,6.1065,163.7,163.62,62.0]
[1748595313600,6.1067,163.69,163.63,31.44]
[1748595314002,31.44,163.73,163.63,31.44]
[1748595314194,0.04392981,163.68,163.64,0.04341056]
[1748595315801,0.04392981,163.68,163.66,6.1077]
[1748595317098,0.04392981,163.68,163.65,6.108]
[1748595317301,6.15102981,163.68,163.65,6.108]
[1748595317505,0.04392981,163.68,163.64,0.04341056]
[1748595317809,6.1081,163.66,163.64,0.04341056]
[1748595318208,0.04392981,163.68,163.64,0.04341056]
[1748595318605,6.1082,163.65,163.64,0.04341056]
[1748595319407,6.1079,163.66,163.64,0.04341056]
[1748595320912,6.1082,163.65,163.64,0.04341056]
[1748595324102,6.1075,163.67,163.64,0.04341056]
[1748595324307,0.04392981,163.68,163.64,0.04341056]
[1748595324507,0.04392981,163.68,163.64,31.44341056]
[1748595324908,0.04392981,163.68,163.64,38.15027646]
[1748595325108,0.04392981,163.68,163.65,2.0703]
[1748595325307,0.04392981,163.68,163.67,6.1074]
[1748595326310,0.04392981,163.68,163.65,2.0703]
[1748595327217,0.04392981,163.68,163.67,6.1074]
[1748595330919,0.04392981,163.68,163.66,6.1077]
[1748595331213,0.04392981,163.68,163.66,6.1075]
[1748595331607,0.04392981,163.68,163.65,2.0703]
[1748595332113,0.04392981,163.68,163.67,6.1074]
[1748595333418,0.04392981,163.68,163.64,31.44341056]
[1748595334816,0.04392981,163.68,163.67,6.1074]
[1748595337924,0.04392981,163.68,163.64,31.44341056]
[1748595339123,0.04392981,163.68,163.65,6.1082]
[1748595339124,6.15122981,163.68,163.65,6.1082]
[1748595341422,0.04392981,163.68,163.65,6.1082]
[1748595341619,0.04392981,163.68,163.64,37.55181056]
[1748595342121,6.1074,163.67,163.64,37.55181056]
[1748595342329,0.04392981,163.68,163.64,31.44341056]
[1748595342719,6.1081,163.66,163.64,31.44341056]
[1748595344721,6.1075,163.67,163.64,37.55181056]
[1748595345130,6.1075,163.67,163.64,31.44341056]
[1748595346526,0.04392981,163.68,163.64,31.44341056]
[1748595348021,6.108,163.66,163.64,31.44341056]
[1748595350132,6.1075,163.67,163.64,37.55181056]
[1748595350633,6.15112981,163.68,163.65,6.1081]
[1748595350935,6.15112981,163.68,163.64,31.44341056]
[1748595350936,0.04392981,163.68,163.64,31.44341056]
[1748595351128,0.04392981,163.68,163.64,33.44681056]
[1748595353835,0.04392981,163.68,163.67,6.1074]
[1748595354734,0.04392981,163.68,163.66,6.1076]
[1748595354934,0.04392981,163.68,163.64,33.44681056]
[1748595356135,0.04392981,163.68,163.67,6.1074]
[1748595360238,0.04392981,163.68,163.66,6.1076]
[1748595360432,0.04392981,163.68,163.64,33.44681056]
[1748595361036,0.04392981,163.68,163.66,6.1076]
[1748595362839,0.04392981,163.68,163.64,31.44341056]
[1748595363438,6.15112981,163.68,163.65,6.1081]
[1748595364129,0.04392981,163.68,163.64,31.44341056]
[1748595365137,0.04392981,163.68,163.67,6.1074]
[1748595366545,0.04392981,163.68,163.66,6.1077]
[1748595366736,0.04392981,163.68,163.64,31.44341056]
[1748595367442,0.04392981,163.68,163.66,6.1076]
[1748595368533,6.15122981,163.68,163.65,6.108]
[1748595368733,0.04392981,163.68,163.64,31.44341056]
[1748595369039,6.1077,163.67,163.64,37.55171056]
[1748595369442,0.04392981,163.68,163.64,31.44341056]
[1748595369641,6.1074,163.67,163.64,31.44341056]
[1748595370437,6.1074,163.67,163.64,37.55171056]
[1748595372846,6.1078,163.66,163.64,31.44341056]
[1748595373646,6.1078,163.66,163.64,37.55191056]
[1748595373848,6.1076,163.67,163.64,37.55191056]
[1748595374053,0.04392981,163.68,163.64,31.44341056]
[1748595374644,0.04392981,163.68,163.67,6.1074]
[1748595380049,0.04392981,163.68,163.64,31.44341056]
[1748595380250,6.15112981,163.68,163.64,31.44341056]
[1748595380449,0.04392981,163.68,163.64,31.44341056]
[1748595380656,0.04392981,163.68,163.65,6.1081]
[1748595381058,0.04392981,163.68,163.66,6.1077]
[1748595381354,0.04392981,163.68,163.64,31.44341056]
[1748595381757,0.04392981,163.68,163.67,6.1074]
[1748595384357,43.5445,163.81,163.67,6.7068659]
[1748595384554,31.34,163.81,163.7,6.7068659]
[1748595384756,31.34,163.81,163.71,31.34]
[1748595385353,0.04219259,163.78,163.74,0.04630646]
[1748595385557,6.1041,163.76,163.74,0.04630646]
[1748595387457,6.1044,163.75,163.74,0.04630646]
[1748595389469,6.1055,163.72,163.71,31.34]
[1748595392066,6.1059,163.71,163.7,0.04187542]
[1748595393563,6.1077,163.67,163.65,31.34]
[1748595397471,6.1078,163.66,163.65,31.34]
[1748595398470,6.1075,163.67,163.65,31.34]
[1748595398671,0.04597847,163.68,163.65,31.34]
[1748595399158,0.04597847,163.68,163.66,6.1075]
[1748595399360,0.04597847,163.68,163.65,31.34]
[1748595400170,0.04597847,163.68,163.66,6.1078]
[1748595401277,0.04597847,163.68,163.67,6.1074]
[1748595401572,0.04597847,163.68,163.65,31.34]
[1748595402961,0.04597847,163.68,163.66,6.1076]
[1748595403369,6.15307847,163.68,163.65,31.34]
[1748595403669,6.15307847,163.68,163.65,37.4479]
[1748595404267,6.15307847,163.68,163.65,31.34]
[1748595404468,6.1075,163.67,163.65,31.34]
[1748595404667,0.04597847,163.68,163.65,31.34]
[1748595404873,6.1078,163.66,163.65,31.34]
[1748595410076,6.1082,163.65,163.64,0.04107865]
[1748595411478,6.1079,163.66,163.64,0.04107865]
[1748595412077,6.1082,163.65,163.64,0.04107865]
[1748595412577,6.1095,163.62,163.59,31.3]
[1748595413175,6.1091,163.63,163.59,31.3]
[1748595413772,6.15029685,163.63,163.61,6.1096]
[1748595414382,6.15029685,163.63,163.6,6.1099]
[1748595414879,0.04119685,163.63,163.59,31.33884226]
[1748595415379,0.04119685,163.63,163.6,6.1099]
[1748595415785,0.04119685,163.63,163.59,31.33884226]
[1748595416472,0.04119685,163.63,163.62,6.1093]
[1748595416873,0.04119685,163.63,163.59,31.33884226]
[1748595417075,0.04119685,163.63,163.61,6.1095]
[1748595419378,6.15009685,163.63,163.61,6.1095]
[1748595419778,0.04119685,163.63,163.61,6.1095]
[1748595420481,0.04119685,163.63,163.62,6.1093]
[1748595420684,0.04119685,163.63,163.59,31.33884226]
[1748595421078,6.15039685,163.63,163.6,6.1098]
[1748595424591,0.04119685,163.63,163.61,6.1096]
[1748595425086,0.04119685,163.63,163.59,31.33884226]
[1748595425994,0.04119685,163.63,163.62,6.1093]
[1748595426180,0.04119685,163.63,163.59,31.33884226]
[1748595426384,0.04119685,163.63,163.61,6.1096]
[1748595427390,0.04119685,163.63,163.59,31.33884226]
[1748595427991,6.1095,163.62,163.59,37.44904226]
[1748595428394,0.04119685,163.63,163.59,31.33884226]
[1748595428593,6.15039685,163.63,163.6,6.11]
[1748595428893,0.04119685,163.63,163.6,6.11]
[1748595429093,6.15029685,163.63,163.6,6.11]
[1748595430097,6.1093,163.62,163.59,37.44904226]
[1748595430401,0.04119685,163.63,163.59,31.33884226]
[1748595430693,6.15019685,163.63,163.6,6.1098]
[1748595431594,6.15019685,163.63,163.62,6.1093]
[1748595431595,0.04119685,163.63,163.62,6.1093]
[1748595431798,31.32,163.71,163.59,38.04570816]
[1748595431994,31.32,163.71,163.6,2.087]
[1748595432193,6.1074,163.68,163.64,6.1085]
[1748595432399,6.1074,163.68,163.64,37.4285]
[1748595432697,6.14635495,163.68,163.64,37.46771657]
[1748595433093,0.03895495,163.68,163.64,31.35921657]
[1748595433693,6.1082,163.65,163.64,31.35921657]
[1748595434696,6.1082,163.65,163.64,0.03921657]
[1748595449296,0.03895495,163.68,163.64,0.03921657]
[1748595449501,0.03895495,163.68,163.65,31.28]
[1748595449904,0.03895495,163.68,163.67,6.1074]
[1748595451504,0.03895495,163.68,163.66,6.1076]
[1748595452404,0.03895495,163.68,163.67,6.1074]
[1748595453605,35.336,163.77,163.65,157.3468659]
[1748595453810,1.997,163.77,163.65,157.3468659]
[1748595454703,6.1056,163.72,163.69,0.04061589]
[1748595455398,6.1056,163.72,163.69,31.32061589]
[1748595455604,6.14875035,163.73,163.69,31.32061589]
[1748595455809,0.04345035,163.73,163.69,31.32061589]
[1748595457111,6.14885035,163.73,163.7,6.106]
[1748595458111,6.14885035,163.73,163.69,37.42711589]
[1748595460107,6.1057,163.72,163.69,37.42711589]
[1748595460506,6.14875035,163.73,163.69,37.42711589]
[1748595461312,6.14875035,163.73,163.7,6.1063]
[1748595461513,0.04345035,163.73,163.69,31.32061589]
[1748595461827,0.04345035,163.73,163.71,6.1057]
[1748595462315,0.04345035,163.73,163.7,6.1062]
[1748595462614,6.14885035,163.73,163.69,31.32061589]
[1748595463202,6.14885035,163.73,163.7,6.1063]
[1748595463804,0.04345035,163.73,163.69,31.32061589]
[1748595464307,6.1058,163.72,163.69,37.42721589]
[1748595464906,6.1058,163.72,163.7,6.1063]
[1748595465112,6.14875035,163.73,163.7,6.1063]
[1748595466112,0.04345035,163.73,163.69,31.32061589]
[1748595467113,0.04345035,163.73,163.71,6.1056]
[1748595467308,0.04345035,163.73,163.69,31.32061589]
[1748595467514,0.04345035,163.73,163.72,6.1055]
[1748595468016,0.04345035,163.73,163.71,6.1058]
[1748595469208,0.04345035,163.73,163.7,6.1062]
[1748595469612,0.04345035,163.73,163.69,37.42711589]
[1748595470112,6.14875035,163.73,163.7,6.1062]
[1748595470309,0.04345035,163.73,163.69,31.32061589]
[1748595471914,6.14885035,163.73,163.69,31.32061589]
[1748595472516,6.14885035,163.73,163.69,37.42701589]
[1748595472918,6.1059,163.72,163.69,31.32061589]
[1748595473218,0.04345035,163.73,163.69,31.32061589]
[1748595473612,6.1063,163.7,163.69,0.04061589]
[1748595488928,6.1063,163.7,163.69,1.589e-05]
[1748595499824,6.1063,163.7,163.62,558.82]
[1748595499825,6.1089,163.63,163.62,558.82]
[1748595500333,6.1089,163.63,163.62,31.18]
[1748595502632,6.15421428,163.64,163.62,31.18]
[1748595502833,0.04551428,163.64,163.62,31.18]
[1748595503635,0.04551428,163.64,163.63,6.1089]
[1748595503838,0.04551428,163.64,163.62,31.18]
[1748595504232,0.04551428,163.64,163.62,37.2891]
[1748595504539,0.04551428,163.64,163.62,31.18]
[1748595504736,6.1089,163.63,163.62,31.18]
[1748595507638,6.15411428,163.64,163.62,31.18]
[1748595508029,0.04551428,163.64,163.62,31.18]
[1748595508428,6.15421428,163.64,163.62,31.18]
[1748595508635,0.04551428,163.64,163.62,31.18]
[1748595509037,0.04551428,163.64,163.63,6.1089]
[1748595509238,0.04551428,163.64,163.62,31.18]
[1748595509640,6.15431428,163.64,163.62,31.18]
[1748595510236,6.1089,163.63,163.62,31.18]
[1748595512837,0.04551428,163.64,163.62,31.18]
[1748595514044,6.1089,163.63,163.62,31.18]
[1748595515348,6.15421428,163.64,163.62,31.18]
[1748595515844,6.1089,163.63,163.62,31.18]
[1748595525966,6.15411428,163.64,163.62,31.18]
[1748595527667,6.1089,163.63,163.62,31.18]
[1748595538970,6.1093,163.62,163.61,0.04048506]
[1748595542373,6.109,163.63,163.61,0.04048506]
[1748595542975,6.1093,163.62,163.61,0.04048506]
[1748595548976,6.1111,163.57,163.56,31.14]
[1748595549173,18.9227659,163.66,163.56,31.14]
[1748595549377,12.2159,163.66,163.56,31.14]
[1748595550069,6.11,163.6,163.59,0.04376363]
[1748595560488,6.1098,163.61,163.59,0.04376363]
[1748595560682,0.04059444,163.63,163.59,0.04376363]
[1748595560882,6.14969444,163.63,163.6,37.2098]
[1748595562281,0.04059444,163.63,163.61,6.1096]
[1748595563482,6.14949444,163.63,163.6,37.2098]
[1748595564287,6.14949444,163.63,163.61,6.1096]
[1748595564785,6.14949444,163.63,163.6,31.1]
[1748595565182,6.14949444,163.63,163.6,37.2097]
[1748595566577,6.1093,163.62,163.6,31.1]
[1748595566780,0.04059444,163.63,163.6,31.1]
[1748595567180,6.14969444,163.63,163.6,37.2098]
[1748595567384,6.14969444,163.63,163.6,31.1]
[1748595568980,6.14969444,163.63,163.61,6.1096]
[1748595569184,31.1,163.72,163.6,31.1]
[1748595569392,31.1,163.72,163.62,6.7068659]
[1748595569693,6.1073,163.68,163.65,6.1079]
[1748595569891,5.9508,163.73,163.65,37.2079]
[1748595570292,6.1073,163.68,163.67,0.04097913]
[1748595572391,6.1086,163.64,163.6,121.0964]
[1748595572587,6.1086,163.64,163.61,31.1]
[1748595572893,6.1086,163.64,163.62,6.1092]
[1748595573392,6.1086,163.64,163.61,37.2525502]
[1748595573597,6.1089,163.63,163.61,31.1430502]
[1748595573789,6.1089,163.63,163.61,37.2526502]
[1748595573988,0.04372713,163.65,163.61,37.2526502]
[1748595574289,6.1087,163.64,163.61,37.2526502]
[1748595576792,6.15202713,163.65,163.61,37.2526502]
[1748595576985,0.04372713,163.65,163.61,31.1430502]
[1748595577591,0.04372713,163.65,163.64,6.1085]
[1748595577992,0.04372713,163.65,163.61,37.8499161]
[1748595578197,0.04372713,163.65,163.64,6.1085]
[1748595578994,0.04372713,163.65,163.63,6.1087]
[1748595579187,0.04372713,163.65,163.61,31.1430502]
[1748595579394,6.15212713,163.65,163.62,6.1092]
[1748595579585,0.04372713,163.65,163.62,6.1092]
[1748595579786,0.04372713,163.65,163.61,31.1430502]
[1748595579988,6.1093,163.62,163.61,31.1430502]
[1748595584298,6.1093,163.62,163.61,0.0430502]
[1748595584498,0.04372713,163.65,163.58,31.1]
[1748595584701,35.2774,163.67,163.58,31.1]
[1748595584995,6.7068659,163.66,163.58,31.1]
[1748595585397,0.04421095,163.64,163.6,0.04076222]
[1748595586207,31.1,163.63,163.55,31.1]
[1748595586405,1.9857,163.62,163.55,31.1]